bitfinex/quotes_ETHUSD_20250508
["timestamp","ask_amount","ask_price","bid_price","bid_amount"]
[1746665036527,5.86879147,1811.7,1811.6,0.51620516]
[1746665038422,21.08163934,1811.7,1811.6,0.51620516]
[1746665039126,5.52089659,1811.3,1811.2,0.51620516]
[1746665039629,5.86852801,1811.3,1811.2,0.51620516]
[1746665040135,0.34763142,1811.3,1811.2,0.51620516]
[1746665040437,5.52043949,1811.5,1811.2,1.29320516]
[1746665040651,0.34315998,1811.4,1811.3,1.8727161]
[1746665041152,0.34315998,1811.4,1811.3,2.38892126]
[1746665042064,5.52010281,1811.6,1811.3,7.90973321]
[1746665042351,0.34315998,1811.5,1811.3,7.90973321]
[1746665042554,0.34315998,1811.5,1811.3,7.96493616]
[1746665042854,0.34315998,1811.5,1811.4,1.31269878]
[1746665043051,5.52000452,1811.6,1811.4,1.31269878]
[1746665043230,0.34315998,1811.5,1811.4,1.31269878]
[1746665043432,0.34315998,1811.5,1811.4,0.51620516]
[1746665045468,0.34315998,1811.5,1811.4,1.30300516]
[1746665045646,5.51985402,1811.7,1811.4,6.82350774]
[1746665045848,0.34315998,1811.6,1811.5,1.8727161]
[1746665046047,5.51985402,1811.7,1811.5,2.38892126]
[1746665046267,5.51952345,1811.8,1811.6,0.51620516]
[1746665046478,5.51952345,1811.8,1811.7,0.51620516]
[1746665051690,5.86268343,1811.8,1811.7,0.51620516]
[1746665052950,0.34315998,1811.8,1811.7,0.51620516]
[1746665053144,0.34315998,1811.8,1811.7,8.73369891]
[1746665053344,5.51877654,1812.0,1811.7,10.21424399]
[1746665053983,0.32106612,1811.9,1811.8,0.51620516]
[1746665055875,5.51866049,1812.1,1811.8,0.51620516]
[1746665056063,0.32106612,1812.0,1811.8,0.51620516]
[1746665056270,5.83982991,1812.0,1811.9,0.51620516]
[1746665056587,0.32106612,1812.0,1811.9,0.51620516]
[1746665056806,0.32106612,1812.0,1811.9,3.91133415]
[1746665056949,0.32106612,1812.0,1811.9,9.43040253]
[1746665057149,5.51827369,1812.2,1811.9,9.43040253]
[1746665057379,0.32106612,1812.0,1811.9,9.43040253]
[1746665057582,5.51827369,1812.2,1811.9,3.91133415]
[1746665057790,0.32106612,1812.0,1811.9,3.96652094]
[1746665057960,11.03610528,1812.3,1811.9,9.48544497]
[1746665058160,0.32106612,1812.0,1811.9,8.96914805]
[1746665058784,5.51818291,1812.2,1811.9,9.48501413]
[1746665058990,0.32106612,1812.0,1811.9,9.48501413]
[1746665059183,5.51818291,1812.2,1811.9,9.48501413]
[1746665059409,11.03609186,1812.3,1811.9,9.48501413]
[1746665059618,0.32106612,1812.2,1811.9,9.48501413]
[1746665059797,0.32106612,1812.2,1812.0,0.51586608]
[1746665059970,5.83925245,1812.2,1812.0,0.51586608]
[1746665062310,5.51845924,1812.1,1812.0,0.51586608]
[1746665062498,5.51845924,1812.1,1812.0,0.90695641]
[1746665062680,5.84296953,1812.1,1812.0,0.90695641]
[1746665063919,6.60356953,1812.1,1812.0,0.51586608]
[1746665065010,5.51937299,1811.8,1811.6,4.22914134]
[1746665065378,0.32735179,1811.7,1811.6,4.22914134]
[1746665067414,0.32735179,1811.7,1811.6,0.51586608]
[1746665069024,0.32735179,1811.7,1811.6,6.94733695]
[1746665069222,5.51894156,1812.0,1811.6,6.94733695]
[1746665069373,0.32735179,1811.9,1811.7,1.8727161]
[1746665069713,5.8466173,1811.9,1811.7,1.8727161]
[1746665069877,5.8466173,1811.9,1811.8,0.51586608]
[1746665072615,0.32735179,1811.9,1811.8,0.51586608]
[1746665072812,0.32735179,1811.9,1811.8,0.8368443]
[1746665074213,5.84642017,1811.9,1811.8,0.8368443]
[1746665074421,5.84642017,1811.9,1811.8,0.51586608]
[1746665075327,0.32735179,1811.9,1811.8,0.51586608]
[1746665076891,5.84642017,1811.9,1811.8,0.51586608]
[1746665081130,6.61552017,1811.9,1811.8,0.51586608]
[1746665081337,5.51967765,1811.7,1811.6,0.1359364]
[1746665081845,5.84444663,1811.7,1811.6,0.65268327]
[1746665082995,5.84444663,1811.7,1811.6,0.6526491]
[1746665084626,0.32476898,1811.7,1811.6,0.6526491]
[1746665085431,0.32476898,1811.7,1811.6,1.82853279]
[1746665089355,0.32476898,1811.7,1811.6,0.6526491]
[1746665095859,5.51890806,1812.0,1811.7,0.7929]
[1746665096044,5.51890806,1812.0,1811.8,0.5167127]
[1746665096448,0.32373573,1811.9,1811.7,2.6656161]
[1746665097082,0.32373573,1811.9,1811.8,0.51710473]
[1746665097244,5.84280411,1811.9,1811.8,0.51710473]
[1746665098092,0.32373573,1811.9,1811.8,0.51710473]
[1746665099146,0.32373573,1811.9,1811.8,6.3547498]
[1746665099349,0.32373573,1811.9,1811.8,0.83537681]
[1746665099571,5.51854839,1812.1,1811.8,0.83537681]
[1746665100043,0.32408013,1812.0,1811.8,0.83537681]
[1746665100240,0.32408013,1812.0,1811.9,0.51710473]
[1746665101054,5.84284392,1812.0,1811.9,0.51710473]
[1746665101386,6.63024392,1812.0,1811.9,0.51710473]
[1746665101780,1.11148013,1812.0,1811.9,0.51710473]
[1746665101953,6.63024392,1812.0,1811.9,0.51710473]
[1746665102153,0.32408013,1812.0,1811.9,0.51710473]
[1746665102783,5.84284392,1812.0,1811.9,0.51710473]
[1746665103692,0.32408013,1812.0,1811.9,0.51710473]
[1746665103879,5.84284392,1812.0,1811.9,0.51710473]
[1746665112378,7.80238315,1812.0,1811.9,0.51710473]
[1746665112579,13.32438315,1812.0,1811.9,0.51710473]
[1746665112788,13.32438315,1812.0,1811.7,3.71327526]
[1746665112789,6.34277299,1811.8,1811.7,3.71327526]
[1746665113114,6.66788634,1811.8,1811.7,3.71327526]
[1746665114911,11.54060244,1811.8,1811.7,3.71327526]
[1746665115096,24.45558313,1811.8,1811.7,3.71327526]
[1746665116009,6.30047765,1811.7,1811.6,0.1359364]
[1746665116402,6.61766774,1811.7,1811.6,0.1359364]
[1746665119904,16.80766774,1811.7,1811.6,0.1359364]
[1746665120109,19.80014149,1811.7,1811.6,0.1359364]
[1746665121312,20.35014149,1811.7,1811.6,0.1359364]
[1746665125226,19.80014149,1811.7,1811.6,0.1359364]
[1746665125428,25.32314149,1811.7,1811.6,0.1359364]
[1746665127435,25.87314149,1811.7,1811.6,0.1359364]
[1746665130006,25.32314149,1811.7,1811.6,0.1359364]
[1746665134469,16.02686774,1811.7,1811.6,0.1359364]
[1746665134677,5.83686774,1811.7,1811.6,0.1359364]
[1746665135033,0.31719009,1811.7,1811.6,0.9454364]
[1746665135975,5.83686774,1811.7,1811.6,0.9454364]
[1746665136172,0.31719009,1811.7,1811.6,0.9454364]
[1746665136558,0.31719009,1811.7,1811.6,1.27875182]
[1746665136765,5.83686774,1811.7,1811.6,1.27875182]
[1746665138244,5.83686774,1811.7,1811.6,0.1359364]
[1746665138447,6.62766774,1811.7,1811.6,0.1359364]
[1746665139301,5.83686774,1811.7,1811.6,0.1359364]
[1746665143386,5.83686774,1811.7,1811.6,0.65233726]
[1746665143686,5.83686774,1811.7,1811.6,0.1359364]
[1746665144061,0.31719009,1811.7,1811.6,0.41826165]
[1746665144279,5.83686774,1811.7,1811.6,0.41826165]
[1746665144887,5.83686774,1811.7,1811.6,0.65209813]
[1746665145065,5.83686774,1811.7,1811.6,0.1359364]
[1746665150894,7.17926774,1811.7,1811.6,0.1359364]
[1746665152693,6.62926774,1811.7,1811.6,0.1359364]
[1746665152897,16.81926774,1811.7,1811.6,0.1359364]
[1746665153219,19.05314514,1811.7,1811.6,0.1359364]
[1746665154699,19.60314514,1811.7,1811.6,0.1359364]
[1746665154996,25.12514514,1811.7,1811.6,0.1359364]
[1746665161482,28.12514514,1811.7,1811.6,0.1359364]
[1746665163108,29.99786124,1811.7,1811.6,0.1359364]
[1746665163402,5.52211607,1810.9,1810.8,3.71327526]
[1746665163607,21.5449297,1810.9,1810.8,3.71327526]
[1746665164105,5.52272601,1810.7,1810.6,3.71327526]
[1746665164677,5.83353964,1810.7,1810.6,3.71327526]
[1746665165912,5.83353964,1810.7,1810.6,4.53827526]
[1746665166202,5.83353964,1810.7,1810.6,3.71327526]
[1746665167704,5.52303103,1810.6,1810.5,0.825]
[1746665168228,5.8252248,1810.6,1810.5,0.825]
[1746665169898,0.30219377,1810.6,1810.5,0.825]
[1746665170208,5.52252948,1810.8,1810.5,0.825]
[1746665170398,5.52252948,1810.8,1810.6,2.6877161]
[1746665170399,0.30167639,1810.7,1810.6,2.6877161]
[1746665173733,0.30167639,1810.7,1810.6,8.21074713]
[1746665174097,5.52213482,1810.9,1810.7,0.8103]
[1746665175330,11.04452017,1810.9,1810.7,0.8103]
[1746665175539,5.52213482,1810.9,1810.7,0.8103]
[1746665176338,5.52242102,1810.8,1810.7,1.13010807]
[1746665176500,5.52242102,1810.8,1810.7,0.8103]
[1746665177805,5.52297882,1810.7,1810.6,0.7863]
[1746665179539,5.52333609,1810.5,1810.4,1.30586456]
[1746665179900,5.52333609,1810.5,1810.4,0.7908]
[1746665181143,11.04644592,1810.6,1810.4,2.6635161]
[1746665181512,11.04644592,1810.6,1810.4,3.17858066]
[1746665181842,11.04644062,1810.6,1810.4,3.17858066]
[1746665182015,5.52333609,1810.5,1810.4,2.6635161]
[1746665182711,5.52315523,1810.6,1810.4,3.17858066]
[1746665183133,5.52333609,1810.5,1810.4,2.6635161]
[1746665183641,5.52315523,1810.6,1810.4,2.6635161]
[1746665183846,5.52315523,1810.6,1810.4,3.17858066]
[1746665184348,5.52315523,1810.6,1810.4,2.6635161]
[1746665184549,11.04589967,1810.7,1810.4,2.6635161]
[1746665184844,11.04589967,1810.7,1810.5,0.51630022]
[1746665184845,5.52290372,1810.7,1810.5,0.51630022]
[1746665185032,5.52224715,1810.9,1810.6,2.6492161]
[1746665185237,5.52224715,1810.9,1810.7,0.7765]
[1746665185756,5.52198117,1811.0,1810.7,0.7765]
[1746665186117,5.52198117,1811.0,1810.8,1.8727161]
[1746665186312,5.52198117,1811.0,1810.9,0.7585]
[1746665187042,5.52169379,1811.1,1810.9,0.7585]
[1746665187243,5.52135768,1811.2,1811.0,0.51632343]
[1746665187846,5.52135768,1811.2,1810.9,0.7585]
[1746665188142,5.52108297,1811.3,1811.0,2.6678161]
[1746665188724,5.52108297,1811.3,1811.1,0.51642057]
[1746665189154,5.52108297,1811.3,1811.0,2.6678161]
[1746665189359,5.52134515,1811.2,1811.0,2.6678161]
[1746665190660,11.04042192,1811.6,1811.2,0.8065]
[1746665190823,5.5201724,1811.6,1811.2,8.83307129]
[1746665191019,11.04038837,1811.6,1811.2,8.83307129]
[1746665191259,11.04038837,1811.6,1811.3,0.51623723]
[1746665191437,5.52038325,1811.5,1811.3,0.51623723]
[1746665191638,5.52038325,1811.5,1811.2,3.10119497]
[1746665192663,5.5201724,1811.6,1811.3,0.51581086]
[1746665192829,5.52031283,1811.5,1811.3,0.51581086]
[1746665193030,5.52014972,1811.6,1811.3,0.51581086]
[1746665193350,5.522,1811.8,1811.4,0.7668]
[1746665193657,5.52016458,1811.6,1811.4,0.7668]
[1746665194263,5.51978872,1811.7,1811.4,0.7668]
[1746665194560,5.51978872,1811.7,1811.4,1.28261086]
[1746665194761,5.51978872,1811.7,1811.4,3.15532696]
[1746665194962,5.51978872,1811.7,1811.4,4.02845167]
[1746665195464,5.51998968,1811.6,1811.4,3.51264081]
[1746665196061,5.51998968,1811.6,1811.4,4.02722846]
[1746665196236,5.51998968,1811.6,1811.4,3.15410375]
[1746665196758,5.52028705,1811.5,1811.4,0.51458765]
[1746665196929,5.52089659,1811.3,1811.2,0.8294]
[1746665197639,5.52150626,1811.1,1811.0,7.46927526]
[1746665198159,5.52132125,1811.2,1811.0,4.46927526]
[1746665198363,5.5212076,1811.2,1811.0,4.46927526]
[1746665199668,11.0426564,1811.2,1811.0,4.46927526]
[1746665199831,5.5212076,1811.2,1811.0,0.756]
[1746665200958,5.52121497,1811.2,1811.0,0.756]
[1746665201167,5.52104354,1811.3,1811.0,0.756]
[1746665201336,0.31288227,1811.2,1811.0,0.756]
[1746665201535,0.31288227,1811.2,1811.1,1.8727161]
[1746665202729,0.31288227,1811.2,1811.1,8.24793236]
[1746665203055,21.23034984,1811.6,1811.2,6.31959735]
[1746665203369,5.83369136,1811.5,1811.3,1.8727161]
[1746665203535,0.31339926,1811.5,1811.3,2.38729896]
[1746665203735,0.31339926,1811.5,1811.3,3.25797815]
[1746665203935,0.31339926,1811.5,1811.3,8.26408426]
[1746665204155,16.57071291,1811.7,1811.4,0.7985]
[1746665204352,16.57072166,1811.7,1811.4,0.7985]
[1746665204634,0.31339926,1811.6,1811.4,0.7985]
[1746665204842,5.51998714,1811.6,1811.4,1.70475843]
[1746665205172,0.31339926,1811.5,1811.4,1.70475843]
[1746665205468,5.52080729,1811.4,1811.2,0.7985]
[1746665206063,0.31563916,1811.3,1811.2,0.7985]
[1746665206239,11.04098032,1811.5,1811.2,0.7985]
[1746665206563,0.31563916,1811.4,1811.2,0.7985]
[1746665206768,0.31563916,1811.4,1811.3,7.39361269]
[1746665207067,16.57074804,1811.7,1811.3,9.02148998]
[1746665207230,0.31460544,1811.6,1811.3,9.02148998]
[1746665207431,16.57070718,1811.7,1811.3,9.02148998]
[1746665207771,0.31460544,1811.6,1811.3,9.02148998]
[1746665208062,11.05080114,1811.7,1811.3,9.02148998]
[1746665208284,0.31460544,1811.6,1811.4,6.42273825]
[1746665208467,0.31460544,1811.6,1811.5,2.6304161]
[1746665208764,5.531,1811.7,1811.5,0.7577]
[1746665209071,0.31460544,1811.6,1811.5,0.7577]
[1746665209243,5.531,1811.7,1811.5,0.7577]
[1746665209448,0.31581143,1811.6,1811.5,0.7577]
[1746665209667,5.531,1811.7,1811.5,0.7577]
[1746665209866,0.31581143,1811.6,1811.5,0.7577]
[1746665210092,5.531,1811.7,1811.5,0.7577]
[1746665210391,0.31581143,1811.6,1811.5,0.7577]
[1746665210688,5.51954957,1811.8,1811.5,0.7577]
[1746665210897,0.31581143,1811.6,1811.5,0.7577]
[1746665211063,5.51954957,1811.8,1811.5,0.7577]
[1746665211264,0.31581143,1811.7,1811.5,0.7577]
[1746665211583,5.83551894,1811.7,1811.5,1.27258974]
[1746665211956,5.83551894,1811.7,1811.5,0.7577]
[1746665212158,0.31581143,1811.7,1811.5,0.7577]
[1746665212561,0.31581143,1811.7,1811.5,1.27258974]
[1746665213679,0.31581143,1811.7,1811.5,8.66542357]
[1746665213989,5.51920391,1811.9,1811.6,0.51488974]
[1746665214151,25.41655321,1812.1,1811.8,0.796]
[1746665214353,5.5187993,1812.0,1811.8,1.31088974]
[1746665214551,5.51855321,1812.1,1811.8,1.31088974]
[1746665214552,5.51865561,1812.1,1811.8,1.31088974]
[1746665214995,5.51865561,1812.1,1811.8,0.796]
[1746665215464,11.03736211,1812.1,1811.8,0.796]
[1746665215793,5.51865561,1812.1,1811.8,1.31156506]
[1746665216298,5.51886832,1812.0,1811.8,1.31156506]
[1746665216494,5.83864256,1812.0,1811.8,0.796]
[1746665216791,5.83864256,1812.0,1811.8,1.3115666]
[1746665217867,5.83864256,1812.0,1811.8,0.796]
[1746665218077,5.51938968,1811.8,1811.5,0.7777]
[1746665218282,5.51923624,1811.9,1811.6,7.90833259]
[1746665218283,0.32149661,1811.7,1811.6,7.90833259]
[1746665218582,5.51908095,1811.9,1811.6,7.90833259]
[1746665218779,0.32132439,1811.8,1811.6,9.32877447]
[1746665218956,5.51902996,1812.0,1811.7,6.83991181]
[1746665219156,0.32132439,1811.9,1811.7,1.32023416]
[1746665219481,0.32132439,1811.9,1811.7,0.8046]
[1746665220072,0.32132439,1811.9,1811.7,6.3242758]
[1746665220460,0.32132439,1811.9,1811.8,2.38851006]
[1746665220789,0.3214105,1811.9,1811.8,2.38851006]
[1746665220964,5.84047888,1811.9,1811.8,2.38851006]
[1746665221169,5.84047888,1811.9,1811.8,0.51579396]
[1746665221889,5.84047888,1811.9,1811.7,0.51579396]
[1746665224011,5.51937299,1811.8,1811.7,0.51579396]
[1746665224210,5.84095571,1811.8,1811.7,0.51579396]
[1746665224375,5.51967765,1811.7,1811.6,1.8727161]
[1746665224802,5.84126037,1811.7,1811.6,1.8727161]
[1746665225004,0.32158272,1811.7,1811.6,1.8727161]
[1746665225414,0.32158272,1811.7,1811.6,2.38846006]
[1746665227208,0.32158272,1811.7,1811.6,1.8727161]
[1746665227716,0.32158272,1811.7,1811.6,2.38846006]
[1746665228523,0.32158272,1811.7,1811.6,1.8727161]
[1746665228902,0.32158272,1811.7,1811.6,2.38846006]
[1746665230543,0.32158272,1811.7,1811.6,9.48071079]
[1746665230832,5.51857871,1812.1,1811.7,5.51943141]
[1746665231038,0.32218571,1812.0,1811.8,2.38846006]
[1746665231838,5.84098935,1812.0,1811.8,1.8727161]
[1746665232153,5.51906838,1811.9,1811.6,8.17395848]
[1746665232297,5.51906838,1811.9,1811.6,9.54336846]
[1746665232501,5.51906838,1811.9,1811.7,0.5167743]
[1746665232701,0.32218571,1811.8,1811.7,0.5167743]
[1746665232900,0.32218571,1811.8,1811.6,8.17409755]
[1746665233102,5.51906838,1811.9,1811.6,8.17409755]
[1746665233302,0.32218571,1811.7,1811.6,9.54351404]
[1746665233506,5.51906838,1811.9,1811.7,0.51677792]
[1746665234039,5.51906838,1811.9,1811.8,0.51677792]
[1746665234238,6.34826838,1811.9,1811.8,0.51677792]
[1746665234706,5.51978528,1811.7,1811.4,14.90647428]
[1746665235141,5.51944946,1811.8,1811.4,14.90647428]
[1746665235340,11.03909653,1811.8,1811.5,0.51690653]
[1746665235515,5.51973492,1811.7,1811.5,0.51690653]
[1746665236310,5.51944946,1811.8,1811.6,0.51690653]
[1746665236846,5.51944946,1811.8,1811.7,0.51690653]
[1746665239057,7.47813489,1811.8,1811.7,0.51690653]
[1746665239361,5.52028398,1811.6,1811.3,3.71327526]
[1746665239564,11.04051535,1811.6,1811.3,3.71327526]
[1746665239857,5.52023137,1811.6,1811.3,3.71327526]
[1746665240022,5.52023137,1811.6,1811.4,0.5171793]
[1746665240223,5.52023137,1811.6,1811.5,0.5171793]
[1746665240766,11.03973785,1811.7,1811.5,0.5171793]
[1746665241053,5.5200305,1811.6,1811.4,1.8727161]
[1746665242143,5.5200305,1811.6,1811.5,0.51696642]
[1746665243324,5.51985175,1811.7,1811.5,0.51696642]
[1746665243818,5.51998233,1811.6,1811.4,1.8727161]
[1746665244025,5.51989275,1811.7,1811.5,0.51685894]
[1746665244219,11.03985204,1811.7,1811.5,0.51685894]
[1746665244557,5.51998233,1811.6,1811.5,0.51685894]
[1746665244954,5.51989275,1811.7,1811.5,0.51685894]
[1746665245355,5.51989275,1811.7,1811.6,0.51685894]
[1746665246526,5.83932244,1811.7,1811.6,0.51685894]
[1746665248158,7.64768833,1811.7,1811.6,0.51685894]
[1746665249268,7.64768833,1811.7,1811.4,1.8727161]
[1746665249425,5.83932244,1811.7,1811.5,0.51695902]
[1746665249624,0.31942969,1811.7,1811.5,0.51695902]
[1746665249955,0.31942969,1811.7,1811.6,0.51695902]
[1746665250321,0.31942969,1811.7,1811.6,2.38967512]
[1746665250559,0.31942969,1811.7,1811.6,8.69675745]
[1746665250766,11.05684013,1812.0,1811.7,5.5196064]
[1746665251058,11.05684013,1812.0,1811.6,10.67046531]
[1746665251243,5.51906838,1811.9,1811.8,0.51695902]
[1746665252056,5.51906838,1811.9,1811.8,0.51685419]
[1746665252229,11.05684013,1812.0,1811.8,0.51685419]
[1746665253327,5.51854239,1812.1,1811.9,0.51685419]
[1746665253534,5.51854239,1812.1,1812.0,0.51685419]
[1746665258480,16.57468079,1812.2,1812.0,0.51685419]
[1746665258680,5.51845924,1812.1,1812.0,0.51685419]
[1746665260683,5.51845924,1812.1,1811.9,0.51685419]
[1746665261048,5.51845924,1812.1,1812.0,0.51685419]
[1746665261482,5.79192203,1812.1,1812.0,0.51685419]
[1746665261697,5.79192203,1812.1,1811.9,0.51685419]
[1746665262189,5.79192203,1812.1,1812.0,0.51685419]
[1746665263589,0.27346279,1812.1,1812.0,0.51685419]
[1746665263948,11.05629234,1812.2,1812.0,0.51685419]
[1746665264149,5.79192203,1812.1,1812.0,0.51685419]
[1746665264647,5.79192203,1812.1,1811.9,0.51685419]
[1746665265282,5.79192203,1812.1,1811.8,8.21937493]
[1746665265457,5.79192203,1812.1,1811.8,10.01978247]
[1746665265665,0.27346279,1812.1,1811.8,15.53893851]
[1746665265882,11.05629234,1812.2,1811.8,9.96449111]
[1746665266093,5.79193161,1812.1,1811.8,9.96449111]
[1746665266402,5.79193161,1812.1,1811.9,0.51588492]
[1746665266801,5.79193161,1812.1,1812.0,0.51588492]
[1746665267300,5.79193161,1812.1,1811.9,0.51588492]
[1746665267868,5.79193161,1812.1,1811.8,9.96449111]
[1746665268705,5.79193161,1812.1,1811.9,0.51584536]
[1746665269308,5.79193161,1812.1,1811.8,9.96449111]
[1746665270200,5.79193161,1812.1,1811.9,0.51588068]
[1746665270405,5.51876379,1812.0,1811.9,0.51588068]
[1746665270707,5.79360858,1812.0,1811.9,0.51588068]
[1746665272171,5.79360858,1812.0,1811.8,0.51588068]
[1746665272480,5.79360858,1812.0,1811.9,0.51588068]
[1746665273609,0.27484479,1812.0,1811.9,0.51588068]
[1746665276805,5.51846043,1812.1,1811.9,0.51588068]
[1746665277037,0.27484479,1812.0,1811.8,8.19517151]
[1746665277255,0.27484479,1812.0,1811.8,9.56664428]
[1746665277735,0.27484479,1812.0,1811.9,0.51679989]
[1746665278941,11.03669616,1812.2,1811.9,0.51679989]
[1746665279103,0.8217,1812.3,1811.9,0.51679989]
[1746665279104,0.2745857,1812.0,1811.9,0.51679989]
[1746665279836,5.79334949,1812.0,1811.9,0.51679989]
[1746665280430,0.2745857,1812.0,1811.9,0.51679989]
[1746665281125,5.79334949,1812.0,1811.9,0.51679989]
[1746665281519,0.2745857,1812.0,1811.9,0.51679989]
[1746665283900,5.79334949,1812.0,1811.9,0.51679989]
[1746665285300,7.73894828,1812.0,1811.9,0.51679989]
[1746665285495,5.51937299,1811.8,1811.7,0.51679989]
[1746665285898,5.7948225,1811.8,1811.7,0.51679989]
[1746665288288,0.27544951,1811.8,1811.7,0.51679989]
[1746665288556,5.51920249,1811.9,1811.7,0.51679989]
[1746665288849,0.27156218,1811.8,1811.7,0.51679989]
[1746665289045,11.03850024,1811.9,1811.7,0.51679989]
[1746665289347,0.27182136,1811.8,1811.7,0.51679989]
[1746665289547,5.79119435,1811.8,1811.7,0.51679989]
[1746665289743,5.51937299,1811.8,1811.7,0.51679989]
[1746665289925,5.79119435,1811.8,1811.7,0.51679989]
[1746665292851,6.57809435,1811.8,1811.7,0.51679989]
[1746665293160,7.78782403,1811.8,1811.7,0.51679989]
[1746665293457,5.51967765,1811.7,1811.6,0.51679989]
[1746665293759,7.78782403,1811.8,1811.6,0.51679989]
[1746665293760,6.57809435,1811.8,1811.6,0.51679989]
[1746665293912,0.27208054,1811.7,1811.6,0.51679989]
[1746665295641,0.27208054,1811.7,1811.6,1.34699989]
[1746665295818,5.51914411,1811.9,1811.6,8.11229433]
[1746665296036,0.27182136,1811.8,1811.6,1.34699989]
[1746665296236,5.51914411,1811.9,1811.6,1.34699989]
[1746665296462,0.27182136,1811.8,1811.7,0.51679989]
[1746665296661,5.51914411,1811.9,1811.7,0.51679989]
[1746665296860,0.27182136,1811.8,1811.7,0.51679989]
[1746665297061,5.51914411,1811.9,1811.7,0.51679989]
[1746665297275,0.27182136,1811.8,1811.6,0.8302]
[1746665297575,5.51914411,1811.9,1811.6,0.8302]
[1746665297576,11.03844046,1811.9,1811.6,0.8302]
[1746665297773,0.27182136,1811.7,1811.6,0.8302]
[1746665297968,5.51914411,1811.9,1811.6,0.8302]
[1746665298273,5.51914411,1811.9,1811.6,1.3468743]
[1746665298473,0.27182136,1811.8,1811.7,2.3893904]
[1746665298682,11.04495169,1812.0,1811.7,2.3893904]
[1746665298977,11.04495169,1812.0,1811.8,0.5166743]
[1746665299359,5.51863543,1812.1,1811.8,0.7808]
[1746665299756,11.03734932,1812.1,1811.9,0.51665475]
[1746665300351,5.51863543,1812.1,1812.0,0.51665475]
[1746665303376,5.51829055,1812.2,1812.0,0.51665475]
[1746665303591,11.0388832,1812.3,1812.0,0.51665475]
[1746665303592,16.55697538,1812.3,1812.0,0.51665475]
[1746665303798,16.55697538,1812.3,1812.1,0.51665475]
[1746665304005,11.0388832,1812.3,1812.1,0.51665475]
[1746665304169,11.0388832,1812.3,1812.0,0.7986]
[1746665304369,11.0388832,1812.3,1812.1,0.5165586]
[1746665304883,11.0388832,1812.3,1812.0,0.7986]
[1746665305621,16.556969,1812.3,1812.1,0.51643509]
[1746665305778,11.0388832,1812.3,1812.1,0.51643509]
[1746665306196,16.55696928,1812.3,1812.0,0.7986]
[1746665306402,16.55696928,1812.3,1812.0,1.98894658]
[1746665306602,0.25343727,1812.2,1812.0,1.98894658]
[1746665307324,5.77167999,1812.2,1812.1,0.5164066]
[1746665308580,5.51876379,1812.0,1811.9,3.71327526]
[1746665308911,5.51876379,1812.0,1811.8,3.71327526]
[1746665309124,5.77250565,1811.9,1811.8,3.71327526]
[1746665310117,5.77250565,1811.9,1811.8,4.22978317]
[1746665311015,5.77250565,1811.9,1811.8,0.51650791]
[1746665311385,0.25343727,1811.9,1811.8,0.51650791]
[1746665311720,0.25343727,1811.9,1811.8,1.33430791]
[1746665311920,11.03733478,1812.1,1811.8,1.65501031]
[1746665312215,0.25343727,1811.9,1811.8,1.65501031]
[1746665312385,5.51879037,1812.0,1811.8,0.51650791]
[1746665312724,5.51879037,1812.0,1811.9,0.51650791]
[1746665315010,5.51879037,1812.0,1811.9,0.51650951]
[1746665316114,5.51879037,1812.0,1811.7,3.71327526]
[1746665316115,5.51906838,1811.9,1811.8,0.51650951]
[1746665321508,5.77233265,1811.9,1811.8,0.51650951]
[1746665323763,0.25326427,1811.9,1811.8,6.0358825]
[1746665324038,5.51829456,1812.2,1811.8,13.69226889]
[1746665324258,0.25326427,1811.9,1811.8,8.1728959]
[1746665324416,16.55706375,1812.3,1812.0,0.7889]
[1746665324621,11.03896369,1812.3,1812.1,0.51650951]
[1746665325005,11.03896369,1812.3,1812.0,6.30763766]
[1746665325255,11.03896369,1812.3,1812.0,1.97155234]
[1746665325841,11.03896369,1812.3,1812.1,0.51667791]
[1746665326002,15.7077361,1812.4,1812.1,7.90783749]
[1746665326214,15.7077361,1812.4,1812.2,0.51667791]
[1746665326549,5.5174152,1812.5,1812.2,0.51667791]
[1746665326726,5.5174152,1812.5,1812.2,1.56708375]
[1746665327251,11.03495838,1812.5,1812.2,1.56708375]
[1746665327547,11.03492277,1812.5,1812.3,0.51657416]
[1746665327742,11.03492277,1812.5,1812.2,1.56708375]
[1746665327917,5.51757139,1812.4,1812.2,1.56708375]
[1746665328931,5.51757139,1812.4,1812.3,0.51639519]
[1746665329942,5.5174152,1812.5,1812.3,0.51639519]
[1746665330335,5.5174152,1812.5,1812.2,7.08521455]
[1746665330664,5.5174152,1812.5,1812.3,2.58123756]
[1746665331264,11.03492767,1812.5,1812.3,1.8727161]
[1746665331567,5.51754579,1812.4,1812.3,1.8727161]
[1746665331767,5.5174152,1812.5,1812.3,1.8727161]
[1746665332966,11.03489174,1812.5,1812.3,1.8727161]
[1746665333436,11.03493319,1812.5,1812.3,1.8727161]
[1746665333735,5.5174152,1812.5,1812.3,1.8727161]
[1746665335758,5.51674762,1812.7,1812.4,0.8037]
[1746665335959,5.51674762,1812.7,1812.4,1.31940687]
[1746665336276,5.51674762,1812.7,1812.4,1.64413666]
[1746665336473,5.5164632,1812.8,1812.5,2.38821152]
[1746665336680,0.23941666,1812.6,1812.5,7.96053233]
[1746665336856,5.51554101,1813.1,1812.6,6.30639877]
[1746665337031,5.51574867,1813.0,1812.8,1.8727161]
[1746665337234,5.51574867,1813.0,1812.8,2.38821152]
[1746665337669,5.51554101,1813.1,1812.8,3.17791152]
[1746665337877,5.51589088,1813.0,1812.8,3.17791152]
[1746665338076,11.03184915,1813.0,1812.8,3.17791152]
[1746665338385,11.03184915,1813.0,1812.8,3.49570267]
[1746665338584,11.03184915,1813.0,1812.8,2.98020725]
[1746665338743,5.51602404,1812.9,1812.8,2.98020725]
[1746665338944,5.51602404,1812.9,1812.8,1.10749115]
[1746665339274,5.51602404,1812.9,1812.8,0.7897]
[1746665339676,5.51602404,1812.9,1812.6,2.38821152]
[1746665339891,5.51663264,1812.7,1812.6,2.38821152]
[1746665340039,5.51663264,1812.7,1812.6,0.51549542]
[1746665340639,5.51724137,1812.5,1812.4,2.38821152]
[1746665340939,5.51724137,1812.5,1812.4,2.70887267]
[1746665342373,5.51724137,1812.5,1812.4,2.38821152]
[1746665342545,5.51724137,1812.5,1812.4,6.10148678]
[1746665342735,5.51724137,1812.5,1812.4,5.58599136]
[1746665344081,5.51724137,1812.5,1812.4,6.10068053]
[1746665344543,5.51724137,1812.5,1812.4,5.58599136]
[1746665345583,5.51724137,1812.5,1812.4,1.8727161]
[1746665350090,5.51724137,1812.5,1812.4,2.38760373]
[1746665350294,11.0007,1813.1,1812.5,3.78]
[1746665350592,5.51635688,1812.8,1812.7,2.6527161]
[1746665351089,5.51635688,1812.8,1812.7,3.16760373]
[1746665351462,6.49015125,1812.8,1812.7,0.51488763]
[1746665351698,7.59339107,1812.8,1812.7,0.51488763]
[1746665351983,5.5168368,1812.7,1812.2,6.7524]
[1746665352153,5.51779879,1812.4,1812.3,0.51546428]
[1746665352357,5.74378618,1812.4,1812.3,2.38818038]
[1746665352595,5.74378618,1812.4,1812.3,2.70223842]
[1746665353385,5.74378618,1812.4,1812.3,6.41572789]